fUSD/lending_fUSD_20260606
["ID","MTS","AMOUNT","RATE_DAILY","PERIOD"]
[424297808,1780756240000,-500.0,0.00014398,2]
[424297809,1780756240000,-150.0,0.00014406,2]
[424297810,1780756240000,-150.0,0.0001441,2]
[424297805,1780756240000,-150.0,0.00014387,2]
[424297806,1780756240000,-422.33550215,0.00014396,2]
[424297807,1780756240000,-150.0,0.00014397,2]
[424297751,1780756240000,-150.0,0.000142,2]
[424297786,1780756240000,-500.0,0.00014328,2]
[424297781,1780756240000,-500.0,0.00014328,2]
[424297802,1780756240000,-150.0,0.00014381,2]
[424297772,1780756240000,-150.0,0.00014293,2]
[424297775,1780756240000,-150.0,0.00014305,2]
[424297753,1780756240000,-422.33550215,0.00014214,2]
[424297752,1780756240000,-150.0,0.00014208,2]
[424297748,1780756240000,-150.0,0.00014193,2]
[424297747,1780756240000,-422.33550215,0.00014184,2]
[424297749,1780756240000,-422.33550215,0.00014199,2]
[424297758,1780756240000,-150.0,0.00014237,2]
[424297761,1780756240000,-422.33550215,0.00014245,2]
[424297760,1780756240000,-1613.0535,0.00014238,2]
[424297762,1780756240000,-166.66,0.00014247,2]
[424297763,1780756240000,-150.0,0.00014249,2]
[424297759,1780756240000,-150.0,0.00014237,2]
[424297768,1780756240000,-150.0,0.00014274,2]
[424297764,1780756240000,-150.0,0.00014256,2]
[424297756,1780756240000,-422.33550215,0.00014229,2]
[424297766,1780756240000,-150.0,0.00014266,2]
[424297765,1780756240000,-422.33550215,0.0001426,2]
[424297779,1780756240000,-150.0,0.00014323,2]
[424297778,1780756240000,-422.33550215,0.0001432,2]
[424297771,1780756240000,-422.33550215,0.0001429,2]
[424297777,1780756240000,-150.0,0.00014312,2]
[424297773,1780756240000,-150.0,0.00014295,2]
[424297774,1780756240000,-150.0,0.00014298,2]
[424297769,1780756240000,-422.33550215,0.00014275,2]
[424297770,1780756240000,-150.0,0.00014281,2]
[424297780,1780756240000,-150.0,0.00014323,2]
[424297767,1780756240000,-150.0,0.00014274,2]
[424297776,1780756240000,-422.33550215,0.00014305,2]
[424297851,1780756241000,-422.33550215,0.00014578,2]
[424297852,1780756241000,-150.0,0.00014583,2]
[424297848,1780756241000,-150.0,0.00014569,2]
[424297843,1780756241000,-150.0,0.00014546,2]
[424297844,1780756241000,-422.33550215,0.00014547,2]
[424297841,1780756241000,-150.0,0.00014537,2]
[424297842,1780756241000,-150.0,0.00014544,2]
[424297850,1780756241000,-150.0,0.00014578,2]
[424297847,1780756241000,-422.33550215,0.00014562,2]
[424297845,1780756241000,-150.0,0.00014554,2]
[424297854,1780756241000,-150.0,0.00014593,2]
[424297840,1780756241000,-422.33550215,0.00014532,2]
[424297853,1780756241000,-422.33550215,0.00014593,2]
[424297861,1780756241000,-150.0,0.0001463,2]
[424297855,1780756241000,-150.0,0.00014593,2]
[424297857,1780756241000,-150.0,0.00014612,2]
[424297859,1780756241000,-150.0,0.00014618,2]
[424297858,1780756241000,-150.0,0.00014612,2]
[424297860,1780756241000,-422.33550215,0.00014623,2]
[424297863,1780756241000,-422.33550215,0.00014638,2]
[424297873,1780756241000,-25000.0,0.00014677,3]
[424297872,1780756241000,-150.0,0.00014669,2]
[424297862,1780756241000,-150.0,0.00014634,2]
[424297867,1780756241000,-150.0,0.00014649,2]
[424297868,1780756241000,-422.33550215,0.00014653,2]
[424297849,1780756241000,-150.0,0.00014574,2]
[424297856,1780756241000,-422.33550215,0.00014608,2]
[424297846,1780756241000,-150.0,0.00014555,2]
[424297812,1780756241000,-150.0,0.00014421,2]
[424297834,1780756241000,-422.33550215,0.00014502,2]
[424297811,1780756241000,-422.33550215,0.00014411,2]
[424297814,1780756241000,-422.33550215,0.00014426,2]
[424297813,1780756241000,-150.0,0.00014424,2]
[424297815,1780756241000,-446.0,0.00014428,2]
[424297824,1780756241000,-150.0,0.00014462,2]
[424297825,1780756241000,-150.0,0.00014468,2]
[424297816,1780756241000,-458.0,0.00014428,2]
[424297826,1780756241000,-150.0,0.0001447,2]
[424297827,1780756241000,-422.33550215,0.00014472,2]
[424297817,1780756241000,-150.0,0.00014439,2]
[424297821,1780756241000,-150.0,0.00014446,2]
[424297823,1780756241000,-150.0,0.00014457,2]
[424297818,1780756241000,-150.0,0.00014441,2]
[424297822,1780756241000,-422.33550215,0.00014456,2]
[424297820,1780756241000,-150.0,0.00014443,2]
[424297819,1780756241000,-422.33550215,0.00014441,2]
[424297828,1780756241000,-150.0,0.00014481,2]
[424297829,1780756241000,-150.0,0.00014487,2]
[424297830,1780756241000,-422.33550215,0.00014487,2]
[424297871,1780756241000,-422.33550215,0.00014668,2]
[424297832,1780756241000,-150.0,0.00014496,2]
[424297833,1780756241000,-150.0,0.00014499,2]
[424297831,1780756241000,-150.0,0.00014495,2]
[424297839,1780756241000,-150.0,0.00014525,2]
[424297837,1780756241000,-150.0,0.00014518,2]
[424297836,1780756241000,-422.33550215,0.00014517,2]
[424297838,1780756241000,-150.0,0.0001452,2]
[424297835,1780756241000,-150.0,0.00014509,2]
[424297864,1780756241000,-150.0,0.0001464,2]
[424297912,1780756241000,-422.33550215,0.0001479,2]
[424297869,1780756241000,-150.0,0.00014667,2]
[424297906,1780756241000,-422.33550215,0.00014774,2]
[424297907,1780756241000,-150.0,0.0001478,2]
[424297903,1780756241000,-25000.0,0.00014765,3]
[424297913,1780756241000,-150.0,0.0001479,2]
[424297904,1780756241000,-150.0,0.00014765,2]
[424297905,1780756241000,-25000.0,0.00014774,3]
[424297910,1780756241000,-150.0,0.00014785,2]
[424297908,1780756241000,-150.0,0.00014782,2]
[424297909,1780756241000,-25000.0,0.00014782,3]
[424297911,1780756241000,-1672.7364795,0.00014786,2]
[424297914,1780756241000,-25000.0,0.00014791,3]
[424297916,1780756241000,-25000.0,0.000148,3]
[424297902,1780756241000,-150.0,0.00014762,2]
[424297919,1780756241000,-150.0,0.00014813,2]
[424297917,1780756241000,-422.33550215,0.00014805,2]
[424297918,1780756241000,-150.0,0.0001481,2]
[424297923,1780756241000,-422.33550215,0.00014835,2]
[424297922,1780756241000,-422.33550215,0.0001482,2]
[424297920,1780756241000,-150.0,0.00014814,2]
[424297921,1780756241000,-150.0,0.00014818,2]
[424297925,1780756241000,-150.0,0.00014839,2]
[424297926,1780756241000,-150.0,0.00014842,2]
[424297929,1780756241000,-150.0,0.00014855,2]
[424297927,1780756241000,-150.0,0.0001485,2]
[424297928,1780756241000,-422.33550215,0.0001485,2]
[424297870,1780756241000,-150.0,0.00014668,2]
[424297924,1780756241000,-150.0,0.00014836,2]
[424297901,1780756241000,-422.33550215,0.00014759,2]
[424297915,1780756241000,-150.0,0.00014799,2]
[424297896,1780756241000,-150.0,0.00014743,2]
[424297893,1780756241000,-25000.0,0.0001473,3]
[424297866,1780756241000,-150.0,0.00014646,2]
[424297874,1780756241000,-422.33550215,0.00014684,2]
[424297877,1780756241000,-150.0,0.00014687,2]
[424297876,1780756241000,-150.0,0.00014687,2]
[424297887,1780756241000,-150.0,0.00014716,2]
[424297878,1780756241000,-150.0,0.00014691,2]
[424297879,1780756241000,-25000.0,0.00014694,3]
[424297875,1780756241000,-25000.0,0.00014686,3]
[424297880,1780756241000,-150.0,0.00014698,2]
[424297885,1780756241000,-150.0,0.00014714,2]
[424297882,1780756241000,-25000.0,0.00014703,3]
[424297886,1780756241000,-422.33550215,0.00014714,2]
[424297881,1780756241000,-422.33550215,0.00014699,2]
[424297865,1780756241000,-150.0,0.00014642,2]
[424297898,1780756241000,-25000.0,0.00014747,3]
[424297883,1780756241000,-150.0,0.00014705,2]
[424297899,1780756241000,-150.0,0.00014756,2]
[424297891,1780756241000,-150.0,0.00014727,2]
[424297892,1780756241000,-422.33550215,0.00014729,2]
[424297888,1780756241000,-25000.0,0.00014721,3]
[424297900,1780756241000,-25000.0,0.00014756,3]
[424297889,1780756241000,-150.0,0.00014722,2]
[424297890,1780756241000,-150.0,0.00014724,2]
[424297884,1780756241000,-25000.0,0.00014712,3]
[424297895,1780756241000,-150.0,0.00014741,2]
[424297894,1780756241000,-25000.0,0.00014738,3]
[424297897,1780756241000,-422.33550215,0.00014744,2]
[424297969,1780756242000,-500.0,0.00014999,2]
[424297973,1780756242000,-500.0,0.00014999,2]
[424297957,1780756242000,-150.0,0.00014986,2]
[424297968,1780756242000,-500.0,0.00014999,2]
[424297971,1780756242000,-500.0,0.00014999,2]
[424297966,1780756242000,-500.0,0.00014998,2]
[424297958,1780756242000,-150.0,0.00014986,2]
[424297965,1780756242000,-250.0,0.0001499,2]
[424297963,1780756242000,-150.00000001,0.00014986,2]
[424297964,1780756242000,-422.33550215,0.00014986,2]
[424297959,1780756242000,-150.00000001,0.00014986,2]
[424297972,1780756242000,-500.0,0.00014999,2]
[424297967,1780756242000,-500.0,0.00014999,2]
[424297975,1780756242000,-500.0,0.00014999,2]
[424297982,1780756242000,-500.0,0.00014999,2]
[424297974,1780756242000,-500.0,0.00014999,2]
[424297977,1780756242000,-500.0,0.00014999,2]
[424297979,1780756242000,-500.0,0.00014999,2]
[424297988,1780756242000,-500.0,0.00014999,2]
[424297980,1780756242000,-500.0,0.00014999,2]
[424297981,1780756242000,-500.0,0.00014999,2]
[424297978,1780756242000,-500.0,0.00014999,2]
[424297987,1780756242000,-500.0,0.00014999,2]
[424297983,1780756242000,-500.0,0.00014999,2]
[424297989,1780756242000,-500.0,0.00014999,2]
[424297985,1780756242000,-500.0,0.00014999,2]
[424297986,1780756242000,-500.0,0.00014999,2]
[424297976,1780756242000,-500.0,0.00014999,2]
[424297954,1780756242000,-150.0,0.00014962,2]
[424297932,1780756242000,-150.0,0.00014871,2]
[424297960,1780756242000,-150.0,0.00014986,2]
[424297984,1780756242000,-500.0,0.00014999,2]
[424297931,1780756242000,-422.33550215,0.00014865,2]
[424297930,1780756242000,-150.0,0.00014863,2]
[424297933,1780756242000,-150.0,0.00014874,2]
[424297935,1780756242000,-150.0,0.00014888,2]
[424297934,1780756242000,-422.33550215,0.0001488,2]
[424297937,1780756242000,-422.33550215,0.00014895,2]
[424297948,1780756242000,-150.0,0.0001493,2]
[424297947,1780756242000,-150.0,0.00014929,2]
[424297938,1780756242000,-150.0,0.00014898,2]
[424297940,1780756242000,-395.39558197,0.000149,2]
[424297936,1780756242000,-150.0,0.00014893,2]
[424297939,1780756242000,-150.0,0.000149,2]
[424297941,1780756242000,-5299.64593291,0.000149,2]
[424297945,1780756242000,-150.0,0.00014918,2]
[424297942,1780756242000,-422.33550215,0.00014911,2]
[424297944,1780756242000,-150.0,0.00014913,2]
[424297943,1780756242000,-150.0,0.00014911,2]
[424297946,1780756242000,-422.33550215,0.00014926,2]
[424297949,1780756242000,-150.0,0.00014937,2]
[424297951,1780756242000,-150.0,0.00014949,2]
[424297953,1780756242000,-150.0,0.00014957,2]
[424297952,1780756242000,-422.33550215,0.00014956,2]
[424297950,1780756242000,-422.33550215,0.00014941,2]
[424297955,1780756242000,-150.0,0.00014968,2]
[424297961,1780756242000,-150.0,0.00014986,2]
[424297956,1780756242000,-422.33550215,0.00014971,2]
[424297962,1780756242000,-150.0,0.00014986,2]
[424297991,1780756242000,-500.0,0.00014999,2]
[424297970,1780756242000,-500.0,0.00014999,2]
[424298003,1780756242000,-500.0,0.00014999,2]
[424298022,1780756242000,-500.0,0.00014999,2]
[424298021,1780756242000,-500.0,0.00014999,2]
[424298023,1780756242000,-500.0,0.00014999,2]
[424298024,1780756242000,-500.0,0.00014999,2]
[424298028,1780756242000,-500.0,0.00014999,2]
[424298027,1780756242000,-500.0,0.00014999,2]
[424298026,1780756242000,-500.0,0.00014999,2]
[424298025,1780756242000,-500.0,0.00014999,2]
[424298040,1780756242000,-500.0,0.00014999,2]
[424298036,1780756242000,-500.0,0.00014999,2]
[424298046,1780756242000,-500.0,0.00014999,2]
[424298038,1780756242000,-500.0,0.00014999,2]
[424298052,1780756242000,-500.0,0.00014999,2]
[424298051,1780756242000,-500.0,0.00014999,2]
[424298049,1780756242000,-500.0,0.00014999,2]
[424298050,1780756242000,-500.0,0.00014999,2]
[424298045,1780756242000,-500.0,0.00014999,2]
[424298043,1780756242000,-500.0,0.00014999,2]
[424298047,1780756242000,-500.0,0.00014999,2]
[424298042,1780756242000,-500.0,0.00014999,2]
[424298048,1780756242000,-500.0,0.00014999,2]
[424298044,1780756242000,-500.0,0.00014999,2]
[424298041,1780756242000,-500.0,0.00014999,2]
[424298053,1780756242000,-300.0,0.00014999,2]
[424298055,1780756242000,-300.0,0.00014999,2]
[424298057,1780756242000,-300.0,0.00014999,2]
[424298061,1780756242000,-752.31047912,0.00015,2]
[424298019,1780756242000,-500.0,0.00014999,2]
[424298034,1780756242000,-500.0,0.00014999,2]
[424298029,1780756242000,-500.0,0.00014999,2]
[424298031,1780756242000,-500.0,0.00014999,2]
[424298002,1780756242000,-500.0,0.00014999,2]
[424297990,1780756242000,-500.0,0.00014999,2]
[424297994,1780756242000,-500.0,0.00014999,2]
[424297992,1780756242000,-500.0,0.00014999,2]
[424297993,1780756242000,-500.0,0.00014999,2]
[424298032,1780756242000,-500.0,0.00014999,2]
[424297995,1780756242000,-500.0,0.00014999,2]
[424297998,1780756242000,-500.0,0.00014999,2]
[424298000,1780756242000,-500.0,0.00014999,2]
[424297996,1780756242000,-500.0,0.00014999,2]
[424297999,1780756242000,-500.0,0.00014999,2]
[424298004,1780756242000,-500.0,0.00014999,2]
[424298006,1780756242000,-500.0,0.00014999,2]
[424298007,1780756242000,-500.0,0.00014999,2]
[424297997,1780756242000,-500.0,0.00014999,2]
[424298010,1780756242000,-500.0,0.00014999,2]
[424298009,1780756242000,-500.0,0.00014999,2]
[424298020,1780756242000,-500.0,0.00014999,2]
[424298017,1780756242000,-500.0,0.00014999,2]
[424298016,1780756242000,-500.0,0.00014999,2]
[424298018,1780756242000,-500.0,0.00014999,2]
[424298015,1780756242000,-500.0,0.00014999,2]
[424298014,1780756242000,-500.0,0.00014999,2]
[424298001,1780756242000,-500.0,0.00014999,2]
[424298012,1780756242000,-500.0,0.00014999,2]
[424298008,1780756242000,-500.0,0.00014999,2]
[424298059,1780756242000,-3033.23386497,0.00015,2]
[424298011,1780756242000,-500.0,0.00014999,2]
[424298013,1780756242000,-500.0,0.00014999,2]
[424298005,1780756242000,-500.0,0.00014999,2]
[424298063,1780756243000,-5103486.60992142,0.00015,2]
[424298069,1780756244000,-385.83571343,0.00014803,2]
[424298073,1780756246000,-287.75352597,0.00014427,2]
[424298072,1780756246000,-204.167598,0.00014168,2]
[424298070,1780756246000,-172.894509,0.00013426,2]
[424298071,1780756246000,-449.168715,0.00013493,2]
[424298079,1780756394000,25000.0,0.00030137,120]
[424298080,1780756439000,1479.62,0.00028825,120]
[424298083,1780756440000,1479.62,0.00028825,120]
[424298082,1780756440000,1479.62,0.00028825,120]
[424298081,1780756440000,1479.62,0.00028825,120]
[424298084,1780756441000,1479.62,0.00028825,120]
[424298086,1780756558000,3367.7,0.00030137,120]
[424298088,1780756638000,278.82,0.00030082,120]
[424298089,1780756751000,151.08,7.537e-05,3]
[424298090,1780756824000,1000.0,0.0003,120]
[424298091,1780756884000,1000.0,0.0003,120]
[424298093,1780756887000,1566.90407668,5.81e-05,2]
[424298096,1780756887000,384.21636504,5.81e-05,2]
[424298095,1780756887000,3246.52120668,5.81e-05,2]
[424298094,1780756887000,171.2583516,5.81e-05,2]
[424298098,1780756943000,200.0,5.697e-05,2]
[424298099,1780756970000,432.91,5.687e-05,2]
[424298101,1780757017000,1343.30768746,5.64e-05,2]
[424298103,1780757018000,1278.47576801,5.64e-05,2]
[424298102,1780757018000,2308.72654453,5.64e-05,2]
[424298107,1780757110000,3557.33699434,5.606e-05,2]
[424298106,1780757110000,1646.15175107,5.606e-05,2]
[424298110,1780757180000,-10000.0,5.606e-05,2]
[424298111,1780757182000,-10000.0,5.606e-05,2]
[424298112,1780757183000,-10000.0,5.606e-05,2]
[424298114,1780757183000,-10000.0,5.606e-05,2]
[424298115,1780757183000,-10000.0,5.606e-05,2]
[424298113,1780757183000,-10000.0,5.606e-05,2]
[424298116,1780757184000,-9963.64125459,5.606e-05,2]
[424298123,1780757205000,-191.13,6.115e-05,2]
[424298117,1780757205000,-4173.45,6.029e-05,2]
[424298119,1780757205000,-193.0,6.044e-05,2]
[424298121,1780757205000,-150.0,6.089e-05,2]
[424298120,1780757205000,-250.0,6.059e-05,2]
[424298122,1780757205000,-250.0,6.108e-05,2]
[424298118,1780757205000,-150.0,6.037e-05,2]
[424298124,1780757205000,-150.0,6.149e-05,2]
[424298130,1780757205000,-500.0,6.156e-05,2]
[424298125,1780757205000,-617.07104466,6.156e-05,2]
[424298127,1780757205000,-500.0,6.156e-05,2]
[424298129,1780757205000,-500.0,6.156e-05,2]
[424298128,1780757205000,-500.0,6.156e-05,2]
[424298132,1780757205000,-500.0,6.156e-05,2]
[424298131,1780757205000,-351.39242597,6.156e-05,2]
[424298133,1780757205000,-640.35935752,6.156e-05,2]
[424298134,1780757205000,-22.77589838,6.156e-05,2]
[424298126,1780757205000,-360.82127347,6.156e-05,2]
[424298136,1780757206000,-477.22410162,6.156e-05,2]
[424298137,1780757206000,-500.0,6.156e-05,2]
[424298140,1780757206000,-500.0,6.156e-05,2]
[424298138,1780757206000,-500.0,6.156e-05,2]
[424298139,1780757206000,-600.02148965,6.156e-05,2]
[424298142,1780757206000,-500.0,6.156e-05,2]
[424298141,1780757206000,-500.0,6.156e-05,2]
[424298147,1780757206000,-600.02148965,6.156e-05,2]
[424298144,1780757206000,-234.99843405,6.156e-05,2]
[424298150,1780757206000,-600.02148965,6.156e-05,2]
[424298151,1780757206000,-600.02148965,6.156e-05,2]
[424298149,1780757206000,-600.02148965,6.156e-05,2]
[424298143,1780757206000,-600.02148965,6.156e-05,2]
[424298146,1780757206000,-278.13202461,6.156e-05,2]
[424298145,1780757206000,-471.76266878,6.156e-05,2]
[424298148,1780757206000,-600.02148965,6.156e-05,2]
[424298152,1780757207000,-600.02148965,6.156e-05,2]
[424298161,1780757207000,-600.02148965,6.156e-05,2]
[424298154,1780757207000,-600.02148965,6.156e-05,2]
[424298155,1780757207000,-37.66787444,6.156e-05,2]
[424298156,1780757207000,-562.35361521,6.156e-05,2]
[424298157,1780757207000,-600.02148965,6.156e-05,2]
[424298158,1780757207000,-600.02148965,6.156e-05,2]
[424298160,1780757207000,-600.02148965,6.156e-05,2]
[424298153,1780757207000,-600.02148965,6.156e-05,2]
[424298159,1780757207000,-600.02148965,6.156e-05,2]
[424298162,1780757207000,-600.02148965,6.156e-05,2]
[424298163,1780757207000,-600.02148965,6.156e-05,2]
[424298172,1780757207000,-437.32404004,6.156e-05,2]
[424298170,1780757207000,-600.02148965,6.156e-05,2]
[424298168,1780757207000,-600.02148965,6.156e-05,2]
[424298171,1780757207000,-600.02148965,6.156e-05,2]
[424298167,1780757207000,-600.02148965,6.156e-05,2]
[424298166,1780757207000,-600.02148965,6.156e-05,2]
[424298164,1780757207000,-600.02148965,6.156e-05,2]
[424298165,1780757207000,-600.02148965,6.156e-05,2]
[424298169,1780757207000,-600.02148965,6.156e-05,2]
[424298179,1780757208000,-600.02148965,6.156e-05,2]
[424298174,1780757208000,-600.02148965,6.156e-05,2]
[424298173,1780757208000,-162.69744961,6.156e-05,2]
[424298176,1780757208000,-600.02148965,6.156e-05,2]
[424298175,1780757208000,-600.02148965,6.156e-05,2]
[424298178,1780757208000,-600.02148965,6.156e-05,2]
[424298180,1780757208000,-600.02148965,6.156e-05,2]
[424298182,1780757208000,-600.02148965,6.156e-05,2]
[424298177,1780757208000,-600.02148965,6.156e-05,2]
[424298184,1780757208000,-600.02148965,6.156e-05,2]
[424298190,1780757208000,-236.95871599,6.156e-05,2]
[424298188,1780757208000,-600.02148965,6.156e-05,2]
[424298187,1780757208000,-600.02148965,6.156e-05,2]
[424298181,1780757208000,-600.02148965,6.156e-05,2]
[424298189,1780757208000,-600.02148965,6.156e-05,2]
[424298183,1780757208000,-600.02148965,6.156e-05,2]
[424298186,1780757208000,-600.02148965,6.156e-05,2]
[424298185,1780757208000,-600.02148965,6.156e-05,2]
[424298202,1780757209000,-500.0,6.269e-05,2]
[424298192,1780757209000,-600.02148965,6.156e-05,2]
[424298193,1780757209000,-600.02148965,6.156e-05,2]
[424298195,1780757209000,-988.0,6.156e-05,2]
[424298194,1780757209000,-600.02148965,6.156e-05,2]
[424298196,1780757209000,-5353.85,6.157e-05,2]
[424298191,1780757209000,-363.06277366,6.156e-05,2]
[424298198,1780757209000,-150.13075189,6.162e-05,2]
[424298199,1780757209000,-150.0,6.162e-05,2]
[424298200,1780757209000,-215.80795776,6.191e-05,2]
[424298201,1780757209000,-150.0,6.209e-05,2]
[424298203,1780757209000,-150.0,6.27e-05,2]
[424298197,1780757209000,-150.0,6.161e-05,2]
[424298204,1780757209000,-29.08404774,6.33e-05,2]
[424298206,1780757210000,-150.0,6.39e-05,2]
[424298207,1780757210000,-264.34,6.424e-05,2]
[424298205,1780757210000,-120.91595226,6.33e-05,2]
[424298210,1780757210000,-8985.58404774,6.482e-05,2]
[424298208,1780757210000,-329.16,6.427e-05,2]
[424298209,1780757210000,-150.0,6.45e-05,2]
[424298214,1780757211000,-175.0,6.511e-05,2]
[424298213,1780757211000,-150.0,6.5e-05,2]
[424298212,1780757211000,-150.0,6.5e-05,2]
[424298211,1780757211000,-8349.03595226,6.482e-05,2]
[424298218,1780757212000,-150.0,6.725e-05,2]
[424298220,1780757212000,-134.96404774,6.963e-05,2]
[424298219,1780757212000,-255.0,6.777e-05,2]
[424298217,1780757212000,-193.0,6.632e-05,2]
[424298215,1780757212000,-250.0,6.632e-05,2]
[424298216,1780757212000,-193.0,6.632e-05,2]
[424298221,1780757213000,-242.71595226,6.963e-05,2]
[424298239,1780757295000,-927.59818152,7e-05,2]
[424298234,1780757295000,-150.0,6.217e-05,2]
[424298235,1780757295000,-600.0,6.7e-05,2]
[424298238,1780757295000,-300.0,6.999e-05,2]
[424298237,1780757295000,-2000.0,6.9e-05,2]
[424298236,1780757295000,-1300.0,6.8e-05,2]
[424298233,1780757295000,-4722.40181848,6.156e-05,2]
[424298246,1780757296000,-1777.0,7.014e-05,2]
[424298247,1780757296000,-5414.46591296,7.014e-05,2]
[424298244,1780757296000,-300.54393102,7.013e-05,2]
[424298243,1780757296000,-250.0,7.012e-05,2]
[424298241,1780757296000,-183.07272168,7.012e-05,2]
[424298242,1780757296000,-152.51561586,7.012e-05,2]
[424298240,1780757296000,-1772.40181848,7e-05,2]
[424298245,1780757296000,-150.0,7.013e-05,2]
[424298248,1780757297000,-10000.0,7.014e-05,2]
[424298249,1780757298000,-10000.0,7.014e-05,2]
[424298250,1780757299000,-10000.0,7.014e-05,2]
[424298251,1780757300000,-10000.0,7.014e-05,2]
[424298252,1780757301000,-10000.0,7.014e-05,2]
[424298258,1780757302000,-151.0,7.044e-05,2]
[424298257,1780757302000,-151.0,7.044e-05,2]
[424298254,1780757302000,-150.0,7.014e-05,2]
[424298253,1780757302000,-7892.53408704,7.014e-05,2]
[424298256,1780757302000,-250.0,7.026e-05,2]
[424298255,1780757302000,-150.0,7.014e-05,2]
[424298259,1780757302000,-1255.46591296,7.047e-05,2]
[424298260,1780757303000,-10000.0,7.047e-05,2]
[424298261,1780757304000,-10000.0,7.047e-05,2]
[424298263,1780757305000,-10000.0,7.047e-05,2]
[424298262,1780757305000,-10000.0,7.047e-05,2]
[424298264,1780757306000,-10000.0,7.047e-05,2]
[424298265,1780757307000,-10000.0,7.047e-05,2]
[424298266,1780757308000,-10000.0,7.047e-05,2]
[424298267,1780757309000,-10000.0,7.047e-05,2]
[424298268,1780757310000,-10000.0,7.047e-05,2]
[424298269,1780757311000,-10000.0,7.047e-05,2]
[424298270,1780757313000,-10000.0,7.047e-05,2]
[424298271,1780757314000,-10000.0,7.047e-05,2]
[424298272,1780757315000,-10000.0,7.047e-05,2]
[424298273,1780757316000,-10000.0,7.047e-05,2]
[424298274,1780757316000,-10000.0,7.047e-05,2]
[424298275,1780757317000,-10000.0,7.047e-05,2]
[424298276,1780757318000,-10000.0,7.047e-05,2]
[424298277,1780757319000,-10000.0,7.047e-05,2]
[424298279,1780757320000,-9599.01061807,7.047e-05,2]
[424298278,1780757320000,-400.98938193,7.046e-05,2]
[424298280,1780757321000,-10000.0,7.047e-05,2]
[424298281,1780757322000,-10000.0,7.047e-05,2]
[424298282,1780757323000,-10000.0,7.047e-05,2]
[424298283,1780757324000,-10000.0,7.047e-05,2]
[424298285,1780757389000,-250.0,6.601e-05,2]
[424298286,1780757389000,-250.0,6.771e-05,2]
[424298288,1780757389000,-306.85309033,7.046e-05,2]
[424298289,1780757389000,-539.71422898,7.046e-05,2]
[424298287,1780757389000,-532.05881603,7.044e-05,2]
[424298290,1780757389000,-182.26215084,7.046e-05,2]
[424298284,1780757389000,-260.1,5.598e-05,2]
[424298292,1780757389000,-274.64029653,7.046e-05,2]
[424298293,1780757389000,-256.70028956,7.046e-05,2]
[424298295,1780757389000,-150.0,7.047e-05,2]
[424298296,1780757389000,-213.0,7.047e-05,2]
[424298297,1780757389000,-302.46,7.047e-05,2]
[424298298,1780757389000,-357.46982691,7.047e-05,2]
[424298299,1780757389000,-378.61454693,7.047e-05,2]
[424298300,1780757389000,-3124.40429106,7.047e-05,2]
[424298291,1780757389000,-253.12578051,7.046e-05,2]
[424298294,1780757389000,-183.15213467,7.046e-05,2]
[424298307,1780757395000,-7398.49079563,7.047e-05,2]
[424298305,1780757395000,-500.0,7.046e-05,2]
[424298304,1780757395000,-408.50007044,7.046e-05,2]
[424298303,1780757395000,-287.89157276,7.046e-05,2]
[424298306,1780757395000,-405.11756117,7.046e-05,2]
[424298302,1780757395000,-500.0,7.046e-05,2]
[424298301,1780757395000,-500.0,7.046e-05,2]
[424298309,1780757405000,-300.0,7.046e-05,2]
[424298308,1780757405000,-150.0,6.5e-05,2]
[424298310,1780757405000,-3550.0,7.047e-05,2]
[424298311,1780757431000,-561.0,7.046e-05,2]
[424298346,1780757432000,-3228.81,8.058e-05,2]